fUST/lending_fUST_20250102
["ID","MTS","AMOUNT","RATE_DAILY","PERIOD"]
[347428504,1735794647215,-155.47948993,0.00019722,3]
[347428505,1735794647224,-500.0,0.00019722,3]
[347428506,1735794647233,-631.84996766,0.00019722,3]
[347428507,1735794647243,-504.52088349,0.00019722,3]
[347428508,1735794647252,-500.0,0.00019722,3]
[347428509,1735794647261,-500.0,0.00019722,3]
[347428510,1735794647271,-500.0,0.00019722,3]
[347428511,1735794647280,-502.81498191,0.00019722,3]
[347428512,1735794647290,-500.0,0.00019722,3]
[347428513,1735794647303,-501.10904976,0.00019722,3]
[347428514,1735794647312,-500.52179197,0.00019722,3]
[347428515,1735794647322,-500.0,0.00019722,3]
[347428516,1735794647331,-503.94980934,0.00019722,3]
[347428517,1735794647341,-1003.85572774,0.00019722,3]
[347428518,1735794647351,-500.0,0.00019722,3]
[347428519,1735794647360,-500.0,0.00019722,3]
[347428520,1735794647370,-501.1078311,0.00019722,3]
[347428521,1735794647381,-500.0,0.00019722,3]
[347428522,1735794647466,-501.75806597,0.00019722,3]
[347428523,1735794647476,-501.22545368,0.00019722,3]
[347428524,1735794647485,-500.98268383,0.00019722,2]
[347428525,1735794647495,-500.91232889,0.00019722,3]
[347428526,1735794647504,-502.30904912,0.00019722,3]
[347428527,1735794647514,-500.0,0.00019722,3]
[347428528,1735794647523,-502.19398522,0.00019722,3]
[347428529,1735794647532,-508.02893309,0.00019722,3]
[347428530,1735794647542,-500.0,0.00019722,3]
[347428531,1735794647551,-502.28130784,0.00019722,3]
[347428532,1735794647560,-500.0,0.00019722,3]
[347428533,1735794647570,-504.37904974,0.00019722,3]
[347428534,1735794647579,-439.02815638,0.00019722,3]
[347428535,1735794647588,-501.120949,0.00019722,3]
[347428536,1735794647598,-545.1800435,0.00019722,3]
[347428537,1735794647607,-193.71567715,0.00019722,3]
[347428538,1735794647616,-500.0,0.00019722,3]
[347428539,1735794647626,-500.0,0.00019722,3]
[347428540,1735794647635,-500.0,0.00019722,3]
[347428541,1735794647644,-500.0,0.00019722,3]
[347428542,1735794647653,-500.0,0.00019722,3]
[347428543,1735794647663,-500.0,0.00019722,3]
[347428544,1735794647672,-182.86147621,0.00019722,3]
[347428545,1735794647681,-500.93132754,0.00019722,3]
[347428546,1735794647690,-503.01927023,0.00019722,3]
[347428547,1735794647701,-501.40830831,0.00019722,3]
[347428548,1735794647710,-502.01128024,0.00019722,3]
[347428549,1735794647719,-502.1376616,0.00019722,3]
[347428550,1735794647728,-500.55979101,0.00019722,3]
[347428551,1735794647737,-500.48064098,0.00019722,3]
[347428552,1735794647747,-501.14619003,0.00019722,3]
[347428553,1735794647756,-500.0,0.00019722,3]
[347428554,1735794647766,-510.85717758,0.00019722,3]
[347428555,1735794647775,-501.92352931,0.00019722,3]
[347428556,1735794647784,-501.01943364,0.00019722,3]
[347428557,1735794647794,-502.84796894,0.00019722,3]
[347428558,1735794647803,-504.97200709,0.00019722,3]
[347428559,1735794647812,-505.05487657,0.00019722,3]
[347428560,1735794647822,-337.82967596,0.00019722,3]
[347428561,1735794647831,-500.0,0.00019722,3]
[347428562,1735794647840,-1957.32,0.00019722,3]
[347428563,1735794647849,-1957.32,0.00019722,3]
[347428564,1735794647858,-500.0,0.00019722,3]
[347428565,1735794647867,-500.0,0.00019723,3]
[347428566,1735794647876,-469.87575154,0.00019723,3]
[347428567,1735794647886,-500.0,0.00019723,3]
[347428568,1735794647894,-500.0,0.00019723,3]
[347428569,1735794647904,-501.85260434,0.00019723,3]
[347428570,1735794647913,-500.0,0.00019723,3]
[347428571,1735794647922,-500.0,0.00019723,3]
[347428572,1735794647931,-502.39026509,0.00019723,3]
[347428573,1735794647941,-500.28238444,0.00019723,3]
[347428574,1735794647951,-501.41270449,0.00019723,3]
[347428575,1735794647961,-501.01302599,0.00019723,3]
[347428576,1735794647969,-501.21337608,0.00019723,3]
[347428577,1735794647979,-500.0,0.00019723,3]
[347428578,1735794647988,-504.29089786,0.00019723,3]
[347428579,1735794647997,-500.0,0.00019723,3]
[347428580,1735794648006,-500.0,0.00019723,3]
[347428581,1735794648016,-316.54353085,0.00019723,3]
[347428582,1735794648026,-500.0,0.00019723,3]
[347428583,1735794648034,-500.0,0.00019723,3]
[347428584,1735794648043,-500.0,0.00019723,3]
[347428585,1735794648053,-500.0,0.00019723,3]
[347428586,1735794648062,-500.0,0.00019723,3]
[347428587,1735794648072,-500.0,0.00019723,3]
[347428588,1735794648081,-500.0,0.00019723,3]
[347428589,1735794648090,-500.0,0.00019724,3]
[347428590,1735794648099,-500.0,0.00019726,3]
[347428591,1735794648108,-500.0,0.00019726,3]
[347428592,1735794648118,-1881.75,0.00019726,3]
[347428593,1735794648127,-500.0,0.00019726,3]
[347428594,1735794648136,-1108.5,0.00019726,3]
[347428595,1735794648145,-500.0,0.00019726,3]
[347428596,1735794648155,-1159.6,0.00019726,3]
[347428597,1735794648164,-500.0,0.00019773,2]
[347428598,1735794648173,-276.5542641,0.00019773,2]
[347428599,1735794648183,-510.63229502,0.00019822,2]
[347428600,1735794648192,-1747.02255843,0.00019896,2]
[347428601,1735794648202,-458.33854729,0.000199,2]
[347428602,1735794648211,-500.0,0.00019973,2]
[347428603,1735794648221,-502.1520751,0.00019973,2]
[347428604,1735794648230,-500.0,0.00019973,2]
[347428605,1735794648239,-506.50432873,0.00019973,2]
[347428606,1735794648249,-500.0,0.00019991,3]
[347428607,1735794648258,-500.0,0.00019991,3]
[347428608,1735794648267,-500.0,0.00019991,3]
[347428609,1735794648277,-3368.58,0.00019991,3]
[347428610,1735794648286,-500.0,0.00019991,3]
[347428611,1735794648297,-500.0,0.00019991,3]
[347428612,1735794648307,-534.12,0.00019991,3]
[347428613,1735794648317,-1775.41,0.00019991,3]
[347428614,1735794648326,-1212.23,0.00019991,3]
[347428615,1735794648336,-561.38,0.00019991,3]
[347428616,1735794648346,-500.0,0.00019991,3]
[347428617,1735794648356,-500.0,0.00019991,3]
[347428618,1735794648365,-500.0,0.00019991,3]
[347428619,1735794648375,-672.92,0.00019991,3]
[347428620,1735794648385,-160.44682479,0.00019992,2]
[347428621,1735794648395,-571.1,0.00019992,3]
[347428622,1735794648404,-500.0,0.00019992,3]
[347428623,1735794648413,-500.0,0.00019992,3]
[347428624,1735794648423,-500.0,0.00019993,3]
[347428625,1735794648432,-504.10734173,0.00019993,3]
[347428626,1735794648441,-500.0,0.00019993,3]
[347428627,1735794648452,-500.0,0.00019993,3]
[347428628,1735794648461,-500.0,0.00019993,3]
[347428629,1735794648471,-506.35896811,0.00019993,3]
[347428630,1735794648481,-500.0,0.00019993,3]
[347428631,1735794648490,-500.0,0.00019993,3]
[347428632,1735794648499,-500.0,0.00019993,3]
[347428633,1735794648510,-500.0,0.00019993,3]
[347428634,1735794648520,-500.0,0.00019993,3]
[347428635,1735794648529,-506.17127377,0.00019993,3]
[347428636,1735794648538,-448.96504044,0.00019993,3]
[347428637,1735794648547,-500.0,0.00019993,3]
[347428638,1735794648556,-500.0,0.00019993,3]
[347428639,1735794648566,-500.0,0.00019993,3]
[347428640,1735794648575,-500.0,0.00019993,3]
[347428641,1735794648585,-738.55,0.00019993,3]
[347428642,1735794648594,-500.0,0.00019993,3]
[347428643,1735794648603,-500.0,0.00019993,3]
[347428644,1735794648613,-500.82573273,0.00019993,3]
[347428645,1735794648622,-201.36583647,0.00019993,3]
[347428646,1735794648631,-500.0,0.00019993,3]
[347428647,1735794648641,-707.22,0.00019993,3]
[347428648,1735794648650,-500.0,0.00019993,3]
[347428649,1735794648659,-500.0,0.00019993,3]
[347428650,1735794648668,-500.0,0.00019993,3]
[347428651,1735794648677,-502.410943,0.00019993,3]
[347428652,1735794648686,-500.0,0.00019993,3]
[347428653,1735794648767,-500.0,0.00019993,3]
[347428654,1735794648777,-500.0,0.00019993,3]
[347428655,1735794648787,-500.0,0.00019993,3]
[347428656,1735794648796,-500.0,0.00019993,3]
[347428657,1735794648805,-640.1912886,0.00019993,3]
[347428658,1735794648814,-500.0,0.00019993,3]
[347428659,1735794648823,-500.0,0.00019993,3]
[347428660,1735794648833,-500.0,0.00019993,3]
[347428661,1735794648842,-500.0,0.00019993,3]
[347428662,1735794648852,-500.0,0.00019993,3]
[347428663,1735794648861,-500.0,0.00019993,3]
[347428664,1735794648871,-500.0,0.00019993,3]
[347428665,1735794648880,-500.0,0.00019993,3]
[347428666,1735794648889,-500.0,0.00019993,3]
[347428667,1735794648899,-500.0,0.00019993,3]
[347428668,1735794648909,-509.53,0.00019993,3]
[347428669,1735794648918,-500.0,0.00019993,3]
[347428670,1735794648927,-500.0,0.00019993,3]
[347428671,1735794648937,-500.0,0.00019993,3]
[347428672,1735794648947,-500.0,0.00019993,3]
[347428673,1735794648956,-500.0,0.00019993,3]
[347428674,1735794648965,-500.0,0.00019993,3]
[347428675,1735794648974,-500.0,0.00019993,3]
[347428676,1735794648983,-500.0,0.00019993,3]
[347428677,1735794648992,-500.0,0.00019993,3]
[347428678,1735794649001,-582.11,0.00019993,3]
[347428679,1735794649011,-500.0,0.00019993,3]
[347428680,1735794649020,-500.0,0.00019993,3]
[347428681,1735794649029,-500.0,0.00019993,3]
[347428682,1735794649038,-500.0,0.00019993,3]
[347428683,1735794649047,-500.0,0.00019993,3]
[347428684,1735794649057,-500.0,0.00019993,3]
[347428685,1735794649066,-361.5103812,0.00019993,3]
[347428686,1735794649075,-524.61,0.00019993,3]
[347428687,1735794649084,-500.0,0.00019993,3]
[347428688,1735794649093,-500.0,0.00019993,3]
[347428689,1735794649102,-503.50687907,0.00019993,3]
[347428690,1735794649112,-1829.75,0.00019993,3]
[347428691,1735794649121,-779.37,0.00019993,3]
[347428692,1735794649130,-500.0,0.00019993,3]
[347428693,1735794649139,-500.0,0.00019993,3]
[347428694,1735794649148,-500.0,0.00019993,3]
[347428695,1735794649158,-577.85,0.00019993,3]
[347428696,1735794649167,-23779.58,0.00019993,3]
[347428697,1735794649177,-566.66999167,0.00019993,3]
[347428698,1735794649186,-500.0,0.00019993,3]
[347428699,1735794649196,-814.17,0.00019993,3]
[347428700,1735794649206,-500.0,0.00019993,3]
[347428701,1735794649215,-500.0,0.00019993,3]
[347428702,1735794649225,-500.0,0.00019993,3]
[347428703,1735794649234,-500.0,0.00019993,3]
[347428704,1735794649244,-449.07988749,0.00019993,3]
[347428705,1735794649253,-1149.49,0.00019993,3]
[347428706,1735794649263,-500.0,0.00019993,3]
[347428707,1735794649274,-500.0,0.00019993,3]
[347428708,1735794649283,-500.0,0.00019993,3]
[347428709,1735794649296,-1427.8,0.00019993,3]
[347428710,1735794649306,-500.0,0.00019993,3]
[347428711,1735794649316,-500.0,0.00019993,3]
[347428712,1735794649325,-500.0,0.00019993,3]
[347428713,1735794649335,-1331.34,0.00019993,3]
[347428714,1735794649344,-500.0,0.00019993,3]
[347428715,1735794649354,-604.16,0.00019993,3]
[347428716,1735794649364,-860.85,0.00019993,3]
[347428717,1735794649375,-504.25709258,0.00019993,3]
[347428718,1735794649386,-501.20264461,0.00019993,3]
[347428719,1735794649396,-500.0,0.00019993,3]
[347428720,1735794649405,-503.78809106,0.00019993,3]
[347428721,1735794649415,-500.0,0.00019993,3]
[347428722,1735794649425,-1449.18,0.00019993,3]
[347428723,1735794649435,-503.85998066,0.00019993,3]
[347428724,1735794649444,-500.0,0.00019993,3]
[347428725,1735794649455,-500.78806821,0.00019993,3]
[347428726,1735794649466,-503.24660531,0.00019993,3]
[347428727,1735794649476,-502.62397811,0.00019993,3]
[347428728,1735794649486,-500.0,0.00019993,3]
[347428729,1735794649495,-419.44287106,0.00019993,3]
[347428730,1735794649505,-500.0,0.00019993,3]
[347428731,1735794649515,-438.54428295,0.00019993,3]
[347428732,1735794649525,-500.0,0.00019993,3]
[347428733,1735794649534,-502.60345852,0.00019993,3]
[347428734,1735794649544,-500.0,0.00019993,3]
[347428735,1735794649553,-502.85293584,0.00019993,3]
[347428736,1735794649563,-503.89282111,0.00019993,3]
[347428737,1735794649573,-500.0,0.00019993,3]
[347428738,1735794649582,-500.0,0.00019993,3]
[347428739,1735794649592,-1189.92,0.00019993,2]
[347428740,1735794649602,-373.03206614,0.00019993,3]
[347428741,1735794649612,-847.21,0.00019993,3]
[347428742,1735794649622,-500.0,0.00019993,3]
[347428743,1735794649632,-500.0,0.00019993,3]
[347428744,1735794649642,-502.59503872,0.00019993,3]
[347428745,1735794649651,-517.7,0.00019993,3]
[347428746,1735794649661,-500.0,0.00019993,3]
[347428747,1735794649670,-500.0,0.00019993,3]
[347428748,1735794649680,-500.0,0.00019993,3]
[347428749,1735794649689,-1081.19,0.00019993,3]
[347428750,1735794649700,-500.0,0.00019993,3]
[347428751,1735794649709,-500.0,0.00019993,3]
[347428752,1735794649718,-500.0,0.00019993,3]
[347428753,1735794649728,-500.0,0.00019993,3]
[347428754,1735794649737,-498.60529947,0.00019993,3]
[347428755,1735794649748,-511.5,0.00019993,3]
[347428756,1735794649757,-500.0,0.00019993,3]
[347428757,1735794649766,-500.0,0.00019993,3]
[347428758,1735794649776,-502.28385663,0.00019993,3]
[347428759,1735794649786,-500.86687431,0.00019993,3]
[347428760,1735794649795,-500.0,0.00019993,3]
[347428761,1735794649804,-769.73,0.00019993,3]
[347428762,1735794649813,-502.67136882,0.00019993,3]
[347428763,1735794649823,-503.2585921,0.00019993,3]
[347428764,1735794649832,-500.0,0.00019993,3]
[347428765,1735794649841,-500.0,0.00019993,3]
[347428766,1735794649850,-500.0,0.00019993,3]
[347428767,1735794649860,-500.0,0.00019993,3]
[347428768,1735794649870,-500.0,0.00019993,3]
[347428769,1735794649883,-503.78005844,0.00019993,3]
[347428770,1735794649892,-361.84993862,0.00019993,3]
[347428771,1735794649902,-502.11741567,0.00019993,3]
[347428772,1735794649911,-502.54476628,0.00019993,3]
[347428773,1735794649921,-500.0,0.00019993,3]
[347428774,1735794650004,-500.0,0.00019993,3]
[347428775,1735794650014,-500.0,0.00019993,3]
[347428776,1735794650024,-500.0,0.00019993,3]
[347428777,1735794650033,-500.0,0.00019993,3]
[347428778,1735794650043,-500.0,0.00019993,3]
[347428779,1735794650053,-1957.32,0.00019994,3]
[347428780,1735794650063,-1957.32,0.00019994,3]
[347428781,1735794650072,-500.0,0.00019994,3]
[347428782,1735794650082,-500.0,0.00019994,3]
[347428783,1735794650091,-500.0,0.00019995,3]
[347428784,1735794650101,-508.31435351,0.00019995,3]
[347428785,1735794650110,-500.0,0.00019995,3]
[347428786,1735794650119,-507.9422983,0.00019995,3]
[347428787,1735794650128,-500.0,0.00019995,3]
[347428788,1735794650137,-501.19472025,0.00019995,3]
[347428789,1735794650147,-797.53,0.00019995,3]
[347428790,1735794650157,-503.89194188,0.00019995,3]
[347428791,1735794650166,-505.6082234,0.00019995,3]
[347428792,1735794650176,-504.69611081,0.00019995,3]
[347428793,1735794650185,-500.0,0.00019995,3]
[347428794,1735794650194,-505.15572488,0.00019995,3]
[347428795,1735794650205,-500.0,0.00019995,3]
[347428796,1735794650214,-500.0,0.00019995,3]
[347428797,1735794650223,-500.0,0.00019995,3]
[347428798,1735794650232,-508.25381816,0.00019995,3]
[347428799,1735794650242,-784.26,0.00019995,3]
[347428800,1735794650251,-500.0,0.00019995,3]
[347428801,1735794650260,-500.0,0.00019995,3]
[347428802,1735794650270,-500.0,0.00019995,3]
[347428803,1735794650279,-500.0,0.00019995,3]
[347428804,1735794650290,-500.0,0.00019995,3]
[347428805,1735794650301,-500.0,0.00019995,3]
[347428806,1735794650311,-500.0,0.00019995,3]
[347428807,1735794650321,-500.0,0.00019995,3]
[347428808,1735794650330,-500.0,0.00019995,3]
[347428809,1735794650341,-500.0,0.00019995,3]
[347428810,1735794650350,-500.0,0.00019995,3]
[347428811,1735794650359,-848.74,0.00019995,3]
[347428812,1735794650370,-500.0,0.00019995,3]
[347428813,1735794650381,-500.06,0.00019995,3]
[347428814,1735794650390,-500.0,0.00019995,3]
[347428815,1735794650400,-500.0,0.00019995,3]
[347428816,1735794650410,-500.0,0.00019995,3]
[347428817,1735794650419,-166.1944852,0.00019995,3]
[347428818,1735794650429,-500.0,0.00019995,3]
[347428819,1735794650438,-560.2,0.00019995,3]
[347428820,1735794650449,-2528.29,0.00019995,3]
[347428821,1735794650458,-500.0,0.00019995,3]
[347428822,1735794650468,-1957.32,0.00019995,3]
[347428823,1735794650477,-500.0,0.00019995,3]
[347428824,1735794650487,-1957.32,0.00019995,3]
[347428825,1735794650497,-500.0,0.00019995,3]
[347428826,1735794650507,-1957.32,0.00019995,3]
[347428827,1735794650516,-500.0,0.00019995,3]
[347428828,1735794650525,-500.0,0.00019995,3]
[347428829,1735794650535,-500.0,0.00019995,3]
[347428830,1735794650545,-356.78425691,0.00019995,3]
[347428831,1735794650554,-500.0,0.00019996,3]
[347428832,1735794650564,-2256.4,0.00019996,3]
[347428833,1735794650573,-511.45841991,0.00019996,3]
[347428834,1735794650582,-500.0,0.00019996,3]
[347428835,1735794650592,-505.03023111,0.00019996,3]
[347428836,1735794650601,-500.0,0.00019996,3]
[347428837,1735794650610,-503.03967367,0.00019996,3]
[347428838,1735794650620,-500.0,0.00019996,3]
[347428839,1735794650629,-506.1374399,0.00019996,3]
[347428840,1735794650638,-500.0,0.00019996,3]
[347428841,1735794650647,-504.55261994,0.00019996,3]
[347428842,1735794650657,-507.45836022,0.00019996,3]
[347428843,1735794650666,-500.0,0.00019996,3]
[347428844,1735794650676,-527.97249403,0.00019996,3]
[347428845,1735794650685,-500.0,0.00019996,3]
[347428846,1735794650694,-508.25031512,0.00019996,3]
[347428847,1735794650704,-504.54609951,0.00019996,3]
[347428848,1735794650713,-506.39599227,0.00019996,3]
[347428849,1735794650723,-500.0,0.00019996,3]
[347428850,1735794650732,-588.09,0.00019996,3]
[347428851,1735794650741,-504.82577553,0.00019996,3]
[347428852,1735794650750,-500.0,0.00019996,3]
[347428853,1735794650760,-500.0,0.00019996,3]
[347428854,1735794650769,-500.0,0.00019996,3]
[347428855,1735794650778,-500.0,0.00019996,3]
[347428856,1735794650788,-503.8681123,0.00019996,3]
[347428857,1735794650797,-506.32448337,0.00019996,3]
[347428858,1735794650807,-557.12,0.00019996,3]
[347428859,1735794650817,-505.58988882,0.00019996,3]
[347428860,1735794650827,-500.0,0.00019996,3]
[347428861,1735794650836,-500.0,0.00019996,3]
[347428862,1735794650846,-500.0,0.00019996,3]
[347428863,1735794650855,-500.0,0.00019996,3]
[347428864,1735794650865,-169.20276551,0.00019996,3]
[347428865,1735794650874,-500.0,0.00019996,3]
[347428866,1735794650883,-500.0,0.00019996,3]
[347428867,1735794650892,-500.0,0.00019996,3]
[347428868,1735794650901,-500.0,0.00019996,3]
[347428869,1735794650911,-500.0,0.00019996,3]
[347428870,1735794650920,-500.0,0.00019996,3]
[347428871,1735794650930,-500.0,0.00019996,3]
[347428872,1735794650939,-500.0,0.00019996,3]
[347428873,1735794650948,-500.0,0.00019996,3]
[347428874,1735794650959,-500.0,0.00019996,3]
[347428875,1735794650968,-500.0,0.00019996,3]
[347428876,1735794650977,-500.0,0.00019996,3]
[347428877,1735794650986,-500.0,0.00019996,3]
[347428878,1735794650996,-503.57120539,0.00019996,3]
[347428879,1735794651005,-500.0,0.00019996,3]
[347428880,1735794651014,-1957.32,0.00019996,3]
[347428881,1735794651023,-500.0,0.00019997,3]
[347428882,1735794651034,-500.0,0.00019997,3]
[347428883,1735794651044,-500.0,0.00019997,3]
[347428884,1735794651054,-502.98333744,0.00019997,3]
[347428885,1735794651133,-500.0,0.00019997,3]
[347428886,1735794651142,-503.48407031,0.00019997,3]
[347428887,1735794651152,-500.0,0.00019997,3]
[347428888,1735794651161,-500.0,0.00019997,3]
[347428889,1735794651170,-500.0,0.00019997,3]
[347428890,1735794651179,-500.0,0.00019997,3]
[347428891,1735794651188,-500.0,0.00019997,3]
[347428892,1735794651198,-504.20451042,0.00019997,3]
[347428893,1735794651208,-500.0,0.00019997,3]
[347428894,1735794651218,-500.0,0.00019997,3]
[347428895,1735794651227,-5940.0,0.0002,2]
[347428896,1735794651236,-151.0,0.0002,3]
[347428897,1735794651245,-500.0,0.0002,3]
[347428898,1735794651254,-505.31782053,0.0002,3]
[347428899,1735794651264,-1881.75,0.0002,3]
[347428900,1735794651274,-500.0,0.0002,3]
[347428901,1735794651283,-1108.5,0.0002,3]
[347428902,1735794651292,-500.0,0.0002,3]
[347428903,1735794651305,-1159.6,0.0002,3]
[347428904,1735794651314,-458.3385471,0.00020111,2]
[347428905,1735794651324,-500.0,0.00020265,3]
[347428906,1735794651333,-500.0,0.00020265,3]
[347428907,1735794651343,-500.0,0.00020265,3]
[347428908,1735794651352,-3368.58,0.00020265,3]
[347428909,1735794651362,-500.0,0.00020265,3]
[347428910,1735794651372,-500.0,0.00020265,3]
[347428911,1735794651382,-534.12,0.00020265,3]
[347428912,1735794651392,-1775.41,0.00020265,3]
[347428913,1735794651402,-1212.23,0.00020265,3]
[347428914,1735794651411,-561.38,0.00020265,3]
[347428915,1735794651421,-500.0,0.00020265,3]
[347428916,1735794651431,-500.0,0.00020265,3]
[347428917,1735794651439,-500.0,0.00020265,3]
[347428918,1735794651449,-571.1,0.00020266,3]
[347428919,1735794651461,-1957.32,0.00020266,3]
[347428920,1735794651470,-500.0,0.00020266,3]
[347428921,1735794651481,-1957.32,0.00020266,3]
[347428922,1735794651491,-1957.32,0.00020266,3]
[347428923,1735794651501,-1957.32,0.00020266,3]
[347428924,1735794651510,-1957.44585888,0.00020266,3]
[347428925,1735794651520,-500.0,0.00020267,3]
[347428926,1735794651529,-500.0,0.00020267,3]
[347428927,1735794651539,-500.0,0.00020267,3]
[347428928,1735794651548,-500.0,0.00020267,3]
[347428929,1735794651557,-500.0,0.00020267,3]
[347428930,1735794651567,-738.55,0.00020267,3]
[347428931,1735794651576,-500.0,0.00020267,3]
[347428932,1735794651585,-629.30274489,0.00020267,3]
[347428933,1735794651595,-500.0,0.00020267,3]
[347428934,1735794651604,-707.22,0.00020267,3]
[347428935,1735794651613,-500.0,0.00020267,3]
[347428936,1735794651622,-500.0,0.00020267,3]
[347428937,1735794651631,-500.0,0.00020267,3]
[347428938,1735794651640,-500.0,0.00020267,3]
[347428939,1735794651650,-500.0,0.00020267,3]
[347428940,1735794651660,-500.0,0.00020267,3]
[347428941,1735794651669,-500.0,0.00020267,3]
[347428942,1735794651679,-500.0,0.00020267,3]
[347428943,1735794651688,-500.0,0.00020267,3]
[347428944,1735794651698,-619.68565733,0.00020267,3]
[347428945,1735794651707,-500.0,0.00020267,3]
[347428946,1735794651717,-502.10785476,0.00020267,3]
[347428947,1735794651727,-500.0,0.00020267,3]
[347428948,1735794651736,-500.0,0.00020267,3]
[347428949,1735794651745,-509.53,0.00020267,3]
[347428950,1735794651755,-500.0,0.00020267,3]
[347428951,1735794651764,-500.0,0.00020267,3]
[347428952,1735794651774,-502.60260858,0.00020267,3]
[347428953,1735794651783,-500.0,0.00020267,3]
[347428954,1735794651793,-648.63611504,0.00020267,3]
[347428955,1735794651802,-500.0,0.00020267,3]
[347428956,1735794651812,-505.20176157,0.00020267,3]
[347428957,1735794651821,-500.0,0.00020267,3]
[347428958,1735794651830,-504.04585259,0.00020267,3]
[347428959,1735794651840,-582.11,0.00020267,3]
[347428960,1735794651849,-500.0,0.00020267,3]
[347428961,1735794651859,-500.0,0.00020267,3]
[347428962,1735794651868,-500.0,0.00020267,3]
[347428963,1735794651877,-500.0,0.00020267,3]
[347428964,1735794651887,-500.0,0.00020267,3]
[347428965,1735794651896,-600.22991812,0.00020267,3]
[347428966,1735794651906,-524.61,0.00020267,3]
[347428967,1735794651915,-500.0,0.00020267,3]
[347428968,1735794651925,-500.0,0.00020267,3]
[347428969,1735794651934,-1829.75,0.00020267,3]
[347428970,1735794651943,-779.37,0.00020267,3]
[347428971,1735794651955,-500.0,0.00020267,3]
[347428972,1735794651965,-507.33004839,0.00020267,3]
[347428973,1735794651974,-577.85,0.00020267,3]
[347428974,1735794651983,-23779.58,0.00020267,3]
[347428975,1735794651993,-500.0,0.00020267,3]
[347428976,1735794652002,-814.17,0.00020267,3]
[347428977,1735794652011,-500.0,0.00020267,3]
[347428978,1735794652020,-500.0,0.00020267,3]
[347428979,1735794652030,-500.0,0.00020267,3]
[347428980,1735794652039,-500.0,0.00020267,3]
[347428981,1735794652049,-1149.49,0.00020267,3]
[347428982,1735794652058,-500.0,0.00020267,3]
[347428983,1735794652068,-500.0,0.00020267,3]
[347428984,1735794652076,-500.0,0.00020267,3]
[347428985,1735794652085,-1427.8,0.00020267,3]
[347428986,1735794652094,-500.0,0.00020267,3]
[347428987,1735794652170,-500.0,0.00020267,3]
[347428988,1735794652179,-500.0,0.00020267,3]
[347428989,1735794652189,-1331.34,0.00020267,3]
[347428990,1735794652198,-500.0,0.00020267,3]
[347428991,1735794652210,-604.16,0.00020267,3]
[347428992,1735794652220,-860.85,0.00020267,3]
[347428993,1735794652230,-504.93233815,0.00020267,3]
[347428994,1735794652239,-500.0,0.00020267,3]
[347428995,1735794652248,-1449.18,0.00020267,3]
[347428996,1735794652257,-500.0,0.00020267,3]
[347428997,1735794652267,-505.60619399,0.00020267,3]
[347428998,1735794652276,-223.55078161,0.00020267,3]
[347428999,1735794652286,-500.0,0.00020267,3]
[347429000,1735794652296,-500.0,0.00020267,3]
[347429001,1735794652307,-500.0,0.00020267,3]
[347429002,1735794652317,-503.78216116,0.00020267,3]
[347429003,1735794652326,-1189.92,0.00020267,2]